bitfinex/quotes_BTCUSD_20250813
["timestamp","ask_amount","ask_price","bid_price","bid_amount"]
[1755123290021,0.05347268,122810.0,122800.0,1.70398193]
[1755123290240,0.05049268,122810.0,122800.0,1.70398193]
[1755123290815,0.05049268,122810.0,122800.0,1.82978193]
[1755123291012,0.05049268,122810.0,122800.0,0.68436125]
[1755123291396,0.05543268,122810.0,122800.0,0.80812477]
[1755123291522,0.05543268,122810.0,122800.0,1.22845477]
[1755123292512,0.05543268,122810.0,122800.0,0.2986]
[1755123292714,0.05543268,122810.0,122800.0,0.19712]
[1755123293026,0.05049268,122810.0,122800.0,0.70425152]
[1755123293250,0.05049268,122810.0,122800.0,1.18945629]
[1755123293444,0.05049268,122810.0,122800.0,1.31525629]
[1755123293690,0.05049268,122810.0,122800.0,0.93392477]
[1755123294190,0.05049268,122810.0,122800.0,0.55059325]
[1755123294341,0.05049268,122810.0,122800.0,0.93192477]
[1755123294555,0.05049268,122810.0,122800.0,0.94821141]
[1755123295058,0.05049268,122810.0,122800.0,2.25557789]
[1755123295219,0.05049268,122810.0,122800.0,1.97168993]
[1755123295422,0.05049268,122810.0,122800.0,2.11675947]
[1755123297576,0.05049268,122810.0,122800.0,2.43127099]
[1755123297778,0.05049268,122810.0,122800.0,2.17573947]
[1755123297980,0.05049268,122810.0,122800.0,2.05260613]
[1755123298187,0.05049268,122810.0,122800.0,2.03066993]
[1755123298385,0.05049268,122810.0,122800.0,2.17836613]
[1755123298588,0.05049268,122810.0,122800.0,2.05260613]
[1755123298988,0.05049268,122810.0,122800.0,2.17836613]
[1755123299187,0.05049268,122810.0,122800.0,2.15642993]
[1755123299387,0.05049268,122810.0,122800.0,2.13442993]
[1755123299592,0.05049268,122810.0,122800.0,2.03060613]
[1755123299965,0.05049268,122810.0,122800.0,2.13642993]
[1755123300625,0.05049268,122810.0,122800.0,2.01066993]
[1755123300823,0.05049268,122810.0,122800.0,2.15836613]
[1755123301403,0.05049268,122810.0,122800.0,2.36124613]
[1755123301659,0.05049268,122810.0,122800.0,2.55636613]
[1755123302190,0.05049268,122810.0,122800.0,2.53442993]
[1755123302394,0.05260268,122810.0,122800.0,1.75417229]
[1755123302673,0.05563268,122810.0,122800.0,1.48765729]
[1755123302876,0.05563268,122810.0,122800.0,1.61551729]
[1755123303048,0.05352268,122810.0,122800.0,1.61551729]
[1755123303252,0.05049268,122810.0,122800.0,1.62680393]
[1755123303484,0.05049268,122810.0,122800.0,1.43168393]
[1755123303684,0.05049268,122810.0,122800.0,1.43568393]
[1755123303931,0.05049268,122810.0,122800.0,1.30992393]
[1755123304133,0.05563268,122810.0,122800.0,0.55248325]
[1755123304316,0.05563268,122810.0,122800.0,0.59381477]
[1755123304723,0.05563268,122810.0,122800.0,0.93381477]
[1755123304860,0.05563268,122810.0,122800.0,0.80805477]
[1755123305050,0.05563268,122810.0,122800.0,0.93381477]
[1755123305250,0.05563268,122810.0,122800.0,0.80805477]
[1755123305451,0.05563268,122810.0,122800.0,0.93381477]
[1755123305673,0.05563268,122810.0,122800.0,1.31514629]
[1755123306438,0.05563268,122810.0,122800.0,1.31724629]
[1755123306553,0.05563268,122810.0,122800.0,1.24319989]
[1755123306758,0.05563268,122810.0,122800.0,2.00586293]
[1755123306960,0.05352268,122810.0,122800.0,2.00586293]
[1755123307600,0.05352268,122810.0,122800.0,1.98957629]
[1755123307813,0.05049268,122810.0,122800.0,2.03591049]
[1755123308010,0.05049268,122810.0,122800.0,2.05219713]
[1755123308458,0.05049268,122810.0,122800.0,1.92803713]
[1755123308949,0.05049268,122810.0,122800.0,2.05379713]
[1755123310963,0.05049268,122810.0,122800.0,2.05375713]
[1755123311565,0.05049268,122810.0,122800.0,2.45175713]
[1755123311976,0.05049268,122810.0,122800.0,2.37531713]
[1755123312229,0.05049268,122810.0,122800.0,2.28357713]
[1755123312431,0.05049268,122810.0,122800.0,2.30785713]
[1755123313779,0.05049268,122810.0,122800.0,2.13773713]
[1755123315219,0.05049268,122810.0,122800.0,2.51906865]
[1755123315421,0.05049268,122810.0,122800.0,2.91225713]
[1755123317472,0.05049268,122810.0,122800.0,2.99782713]
[1755123319307,0.05049268,122810.0,122800.0,2.97282713]
[1755123319525,0.05049268,122810.0,122800.0,2.99782713]
[1755123320464,0.04236529,122810.0,122800.0,2.99782713]
[1755123320669,0.04236529,122810.0,122800.0,2.97282713]
[1755123320816,0.0342379,122810.0,122800.0,2.97282713]
[1755123321018,0.0342379,122810.0,122800.0,2.91225713]
[1755123321258,0.02611051,122810.0,122800.0,2.91225713]
[1755123321429,0.02611051,122810.0,122800.0,3.31021713]
[1755123321630,0.01798406,122810.0,122800.0,3.20877713]
[1755123322158,0.00985761,122810.0,122800.0,3.20877713]
[1755123323636,0.00985761,122810.0,122800.0,3.10733713]
[1755123323889,0.00985761,122810.0,122800.0,3.08233713]
[1755123324105,0.00985761,122810.0,122800.0,2.98161713]
[1755123324319,0.00985761,122810.0,122800.0,3.10729713]
[1755123325275,0.00985761,122810.0,122800.0,3.08229713]
[1755123325487,0.00985761,122810.0,122800.0,3.07171713]
[1755123325708,0.01486761,122810.0,122800.0,2.87663713]
[1755123325889,0.01486761,122810.0,122800.0,2.85163713]
[1755123326089,0.01486761,122810.0,122800.0,2.85470093]
[1755123326718,0.01486761,122810.0,122800.0,2.85163713]
[1755123326915,0.01486761,122810.0,122800.0,2.82970093]
[1755123327118,0.01486761,122810.0,122800.0,1.46545789]
[1755123327345,0.01486761,122810.0,122800.0,1.19950429]
[1755123327550,0.01486761,122810.0,122800.0,1.09794677]
[1755123328186,0.01486761,122810.0,122800.0,1.45423341]
[1755123328520,0.01486761,122810.0,122800.0,1.83556493]
[1755123330800,0.01486761,122810.0,122800.0,1.70988493]
[1755123331053,0.01486761,122810.0,122800.0,1.83556493]
[1755123331481,0.01486761,122810.0,122800.0,2.03844493]
[1755123331667,0.01486761,122810.0,122800.0,2.23352493]
[1755123332318,0.01486761,122810.0,122800.0,2.13208493]
[1755123332981,0.01486761,122810.0,122800.0,1.39135809]
[1755123333192,0.01486761,122810.0,122800.0,2.13208493]
[1755123334106,0.01486761,122810.0,122800.0,1.90496493]
[1755123334282,0.01486761,122810.0,122800.0,2.03064493]
[1755123334944,0.01486761,122810.0,122800.0,1.85750113]
[1755123335366,0.01486761,122810.0,122800.0,1.83556493]
[1755123335586,0.01486761,122810.0,122800.0,1.70988493]
[1755123335794,0.01486761,122810.0,122800.0,1.83556493]
[1755123337006,0.01486761,122810.0,122800.0,1.28385277]
[1755123338501,0.01486761,122810.0,122800.0,1.65992293]
[1755123338648,0.01486761,122810.0,122800.0,1.78560293]
[1755123339134,0.01486761,122810.0,122800.0,1.02293989]
[1755123339330,0.01486761,122810.0,122800.0,1.78560293]
[1755123339902,0.00985761,122810.0,122800.0,1.66202293]
[1755123340113,0.00985761,122810.0,122800.0,1.81123913]
[1755123340284,0.00985761,122810.0,122800.0,1.83619913]
[1755123340710,0.00985761,122810.0,122800.0,2.09189065]
[1755123340926,0.00985761,122810.0,122800.0,2.21757065]
[1755123341138,0.00985761,122810.0,122800.0,2.24257065]
[1755123341534,0.00985761,122810.0,122800.0,2.25923913]
[1755123341535,0.00172932,122810.0,122800.0,2.25923913]
[1755123341809,0.00172932,122810.0,122800.0,2.15779913]
[1755123342017,0.40368784,122830.0,122820.0,0.01628399]
[1755123342232,0.40380818,122830.0,122820.0,4.31510594]
[1755123342455,0.40380818,122830.0,122820.0,3.96583896]
[1755123343296,0.40480818,122830.0,122820.0,3.96583896]
[1755123344224,0.40380818,122830.0,122820.0,3.96583896]
[1755123344429,0.40480818,122830.0,122820.0,3.96583896]
[1755123344699,0.40480818,122830.0,122820.0,4.24813048]
[1755123344914,0.39567989,122830.0,122820.0,4.24813048]
[1755123345130,0.39567989,122830.0,122820.0,4.37377048]
[1755123345619,0.39567989,122830.0,122820.0,4.24813048]
[1755123345858,0.39567989,122830.0,122820.0,4.37377048]
[1755123346079,0.39567989,122830.0,122820.0,4.37677048]
[1755123346472,0.39567989,122830.0,122820.0,4.37977048]
[1755123346905,0.39567989,122830.0,122820.0,4.37817048]
[1755123347288,0.39567989,122830.0,122820.0,4.40255648]
[1755123348311,0.39567989,122830.0,122820.0,4.40415648]
[1755123348644,0.39567989,122830.0,122820.0,4.40255648]
[1755123348853,0.39567989,122830.0,122820.0,4.35562028]
[1755123348984,0.39567989,122830.0,122820.0,4.40625959]
[1755123351596,0.39567989,122830.0,122820.0,4.80581959]
[1755123351785,0.39567989,122830.0,122820.0,4.80421959]
[1755123352132,0.39567989,122830.0,122820.0,4.77917959]
[1755123352334,0.39567989,122830.0,122820.0,4.80417959]
[1755123353136,0.00012034,122830.0,122820.0,4.80417959]
[1755123353607,0.00513034,122830.0,122820.0,2.59824924]
[1755123353814,0.00513034,122830.0,122820.0,1.62429877]
[1755123354245,0.00513034,122830.0,122820.0,1.58092477]
[1755123354473,0.00513034,122830.0,122820.0,1.53672477]
[1755123354669,0.00513034,122830.0,122820.0,1.49552477]
[1755123354884,0.00513034,122830.0,122820.0,1.52316408]
[1755123355670,0.00513034,122830.0,122820.0,1.41511177]
[1755123355831,0.00513034,122830.0,122820.0,1.41711177]
[1755123356660,0.00513034,122830.0,122820.0,1.41511177]
[1755123357103,0.00513034,122830.0,122820.0,1.37520277]
[1755123357326,0.00513034,122830.0,122820.0,1.25533477]
[1755123357530,0.00513034,122830.0,122820.0,0.74840325]
[1755123357763,0.00513034,122830.0,122820.0,1.12973477]
[1755123357963,0.00513034,122830.0,122820.0,0.91533477]
[1755123358536,0.00513034,122830.0,122820.0,1.25533477]
[1755123358870,0.00613034,122830.0,122820.0,1.25533477]
[1755123359073,0.00713034,122830.0,122820.0,1.25533477]
[1755123360069,0.00713034,122830.0,122820.0,1.12973477]
[1755123360289,0.38846186,122830.0,122820.0,0.32568]
[1755123360524,0.38846186,122830.0,122820.0,0.45128]
[1755123360698,0.00713034,122830.0,122820.0,0.45128]
[1755123360893,0.00713034,122830.0,122820.0,0.32568]
[1755123361461,0.00713034,122830.0,122820.0,0.42712]
[1755123361462,0.00613034,122830.0,122820.0,0.42712]
[1755123361661,0.00613034,122830.0,122820.0,0.6222]
[1755123361825,0.00713034,122830.0,122820.0,0.6222]
[1755123362038,0.00713034,122830.0,122820.0,0.64636]
[1755123362293,0.01013034,122830.0,122820.0,0.64636]
[1755123363014,0.01013034,122830.0,122820.0,0.32568]
[1755123363185,0.01013034,122830.0,122820.0,0.64636]
[1755123363755,0.01013034,122830.0,122820.0,0.45128]
[1755123369834,0.01013034,122830.0,122820.0,0.32568]
[1755123370079,0.01013034,122830.0,122820.0,0.45128]
[1755123370454,0.01013034,122830.0,122820.0,0.32568]
[1755123370701,0.01013034,122830.0,122820.0,0.73265083]
[1755123370905,0.00512034,122830.0,122820.0,0.83474152]
[1755123371118,0.00512034,122830.0,122820.0,1.27374876]
[1755123371324,0.00512034,122830.0,122820.0,1.17378807]
[1755123371532,0.00512034,122830.0,122820.0,1.19833256]
[1755123371738,0.00512034,122830.0,122820.0,1.55402477]
[1755123372183,0.01040034,122830.0,122820.0,1.55402477]
[1755123372832,0.01040034,122830.0,122820.0,1.55189477]
[1755123373852,0.01040034,122830.0,122820.0,1.55402477]
[1755123374465,0.00512034,122830.0,122820.0,1.45258477]
[1755123376123,0.00512034,122830.0,122820.0,1.13186477]
[1755123376330,0.00512034,122830.0,122820.0,1.25742477]
[1755123378102,0.00512034,122830.0,122820.0,0.87609325]
[1755123378249,0.00832034,122830.0,122820.0,1.25742477]
[1755123378662,0.00832034,122830.0,122820.0,1.0911713]
[1755123379299,0.00512034,122830.0,122820.0,1.0911713]
[1755123381352,0.00512034,122830.0,122820.0,1.10745529]
[1755123381552,0.00512034,122830.0,122820.0,1.4312546]
[1755123381760,0.00512034,122830.0,122820.0,1.3056946]
[1755123382121,0.00512034,122830.0,122820.0,1.4312546]
[1755123382276,0.00512034,122830.0,122820.0,2.6188716]
[1755123382443,0.00012034,122830.0,122820.0,2.6188716]
[1755123382653,0.00112034,122830.0,122820.0,2.6188716]
[1755123382860,0.00312034,122830.0,122820.0,2.6188716]
[1755123383840,0.00312034,122830.0,122820.0,2.3223116]
[1755123384073,0.00312034,122830.0,122820.0,2.57808312]
[1755123384272,0.00312034,122830.0,122820.0,2.60980312]
[1755123384485,0.00312034,122830.0,122820.0,2.3540316]
[1755123385489,0.00012034,122830.0,122820.0,2.3540316]
[1755123385712,0.00012034,122830.0,122820.0,2.3550316]
[1755123386484,0.00012034,122830.0,122820.0,2.2294716]
[1755123386684,0.00012034,122830.0,122820.0,2.3549916]
[1755123389016,0.00012034,122830.0,122820.0,2.29603229]
[1755123391422,0.00012034,122830.0,122820.0,2.69399229]
[1755123391786,0.00012034,122830.0,122820.0,2.59255229]
[1755123392197,0.00012034,122830.0,122820.0,2.61622016]
[1755123392902,0.00012034,122830.0,122820.0,2.51638016]
[1755123393133,0.00012034,122830.0,122820.0,2.51478016]
[1755123393553,0.00012034,122830.0,122820.0,2.49111229]
[1755123394168,0.00012034,122830.0,122820.0,2.29603229]
[1755123394975,0.00012034,122830.0,122820.0,2.17051229]
[1755123395184,0.00012034,122830.0,122820.0,2.29603229]
[1755123396595,0.00012034,122830.0,122820.0,1.70980829]
[1755123397864,0.00012034,122830.0,122820.0,1.38001152]
[1755123399266,0.00531034,122830.0,122820.0,0.79621253]
[1755123399467,0.00531034,122830.0,122820.0,0.92169253]
[1755123401027,0.00531034,122830.0,122820.0,0.91657253]
[1755123401437,0.00531034,122830.0,122820.0,1.01801253]
[1755123401597,0.00531034,122830.0,122820.0,1.21309253]
[1755123402577,0.00531034,122830.0,122820.0,1.11165253]
[1755123402780,0.00531034,122830.0,122820.0,0.91657253]
[1755123402961,0.00531034,122830.0,122820.0,0.91873253]
[1755123403383,0.00531034,122830.0,122820.0,0.91657253]
[1755123404988,0.00012034,122830.0,122820.0,0.91873253]
[1755123405831,0.00012034,122830.0,122820.0,0.94278803]
[1755123406037,0.00531034,122830.0,122820.0,0.81514803]
[1755123406206,0.00531034,122830.0,122820.0,0.94062803]
[1755123406805,0.00531034,122830.0,122820.0,0.43381651]
[1755123407007,0.00531034,122830.0,122820.0,0.001]
[1755123407247,0.00531034,122830.0,122820.0,0.72233152]
[1755123407426,0.00531034,122830.0,122820.0,0.84781152]
[1755123408073,0.00531034,122830.0,122820.0,0.72233152]
[1755123408226,0.00531034,122830.0,122820.0,0.84781152]
[1755123410220,0.00531034,122830.0,122820.0,0.72233152]
[1755123410417,0.00531034,122830.0,122820.0,0.84781152]
[1755123410793,0.00531034,122830.0,122820.0,0.46648]
[1755123410987,0.00531034,122830.0,122820.0,0.84681152]
[1755123411426,0.00531034,122830.0,122820.0,0.82277152]
[1755123411600,0.00631034,122830.0,122820.0,0.82277152]
[1755123411954,0.00631034,122830.0,122820.0,1.14333152]
[1755123412796,0.00631034,122830.0,122820.0,0.762]
[1755123413184,0.00631034,122830.0,122820.0,1.14333152]
[1755123413731,0.00631034,122830.0,122820.0,0.762]
[1755123413940,0.00631034,122830.0,122820.0,1.14333152]
[1755123415783,0.00631034,122830.0,122820.0,1.04189152]
[1755123416778,0.00631034,122830.0,122810.0,0.02474029]
[1755123416985,0.0032,122820.0,122790.0,0.72133152]
[1755123417186,0.0032,122820.0,122800.0,0.50884735]
[1755123417437,0.0032,122820.0,122810.0,0.12548]
[1755123417604,0.0032,122820.0,122810.0,0.50681152]
[1755123417839,0.00535,122820.0,122810.0,0.50681152]
[1755123417977,0.00535,122820.0,122810.0,0.38133152]
[1755123418183,0.00535,122820.0,122810.0,0.50781152]
[1755123418813,0.19512611,122850.0,122810.0,0.50781152]
[1755123419004,0.08272325,122840.0,122820.0,0.12548]
[1755123419204,0.08272325,122840.0,122830.0,0.12548]
[1755123419441,0.08487325,122840.0,122830.0,0.12548]
[1755123419845,0.46620477,122840.0,122810.0,0.38233152]
[1755123420007,0.46620477,122840.0,122820.0,0.12548]
[1755123420966,0.0032,122830.0,122810.0,0.38233152]
[1755123421264,0.0032,122830.0,122820.0,0.12548]
[1755123421465,0.0032,122830.0,122820.0,0.42204]
[1755123421695,0.00535,122830.0,122820.0,0.42204]
[1755123424048,0.00535,122830.0,122820.0,0.80337152]
[1755123424258,0.00535,122830.0,122820.0,0.42204]
[1755123424461,0.00535,122830.0,122820.0,0.80337152]
[1755123424865,0.00324921,122850.0,122820.0,0.80833152]
[1755123425117,0.002,122830.0,122820.0,0.32556]
[1755123425438,0.004,122830.0,122820.0,0.32556]
[1755123425639,0.002,122830.0,122820.0,0.32556]
[1755123426299,0.002,122830.0,122820.0,0.70689152]
[1755123426970,0.002,122830.0,122820.0,0.32556]
[1755123427171,0.002,122830.0,122820.0,0.70689152]
[1755123428346,0.004,122830.0,122820.0,0.70689152]
[1755123429309,0.004,122830.0,122820.0,0.51177152]
[1755123431404,0.004,122830.0,122820.0,0.13044]
[1755123431638,0.004,122830.0,122820.0,0.42704]
[1755123431851,0.004,122830.0,122820.0,0.80837152]
[1755123433026,0.004,122830.0,122820.0,0.80833152]
[1755123434596,0.004,122830.0,122820.0,0.68285152]
[1755123434804,0.004,122830.0,122820.0,0.80833152]
[1755123435403,0.004,122830.0,122820.0,0.68776264]
[1755123435602,0.004,122830.0,122820.0,0.83264264]
[1755123435837,0.004,122830.0,122820.0,0.95812264]
[1755123436056,0.004,122830.0,122820.0,0.95884877]
[1755123436500,0.004,122830.0,122820.0,0.83336877]
[1755123436710,0.004,122830.0,122820.0,0.95884877]
[1755123440437,0.004,122830.0,122820.0,0.83336877]
[1755123440674,0.00615,122830.0,122820.0,0.84876152]
[1755123440907,0.00935,122830.0,122820.0,0.84876152]
[1755123441294,0.00615,122830.0,122820.0,0.84876152]
[1755123441515,0.00615,122830.0,122820.0,1.14532152]
[1755123442554,0.00615,122830.0,122820.0,1.01984152]
[1755123442776,0.00935,122830.0,122820.0,1.01984152]
[1755123442995,0.00935,122830.0,122820.0,1.14532152]
[1755123443406,0.00935,122830.0,122820.0,1.14337152]
[1755123444594,0.00615,122830.0,122820.0,1.14532152]
[1755123444825,0.00615,122830.0,122820.0,1.04388152]
[1755123447313,0.00615,122830.0,122820.0,0.84876152]
[1755123447517,0.004,122830.0,122820.0,0.85172152]
[1755123451496,0.004,122830.0,122820.0,1.14828152]
[1755123452290,0.00928,122830.0,122820.0,1.14337152]
[1755123453467,0.00928,122830.0,122820.0,1.01789152]
[1755123453702,0.00928,122830.0,122820.0,1.14337152]
[1755123454260,0.00928,122830.0,122820.0,0.91645152]
[1755123454460,0.00928,122830.0,122820.0,0.6606]
[1755123454806,0.00928,122830.0,122820.0,1.04193152]
[1755123455909,0.00614,122830.0,122820.0,0.91850152]
[1755123456116,0.00614,122830.0,122820.0,1.04398152]
[1755123457987,0.00614,122830.0,122820.0,0.84886152]
[1755123458693,0.00614,122830.0,122820.0,0.72338152]
[1755123458918,0.00614,122830.0,122820.0,0.84886152]
[1755123459697,0.00928,122830.0,122820.0,0.84886152]
[1755123460849,0.00614,122830.0,122820.0,0.84886152]
[1755123461632,0.00614,122830.0,122820.0,1.14542152]
[1755123463186,0.00928,122830.0,122820.0,1.01789152]
[1755123463586,0.00928,122830.0,122820.0,0.76204]
[1755123464338,0.00928,122830.0,122820.0,0.3206]
[1755123466369,0.00928,122830.0,122820.0,0.12548]
[1755123469547,0.00928,122830.0,122820.0,0.50681152]
[1755123470547,0.00928,122830.0,122820.0,0.38338152]
[1755123470754,0.00928,122830.0,122820.0,0.50882152]
[1755123471580,0.00928,122830.0,122820.0,0.80538152]
[1755123471852,0.00928,122830.0,122820.0,0.29861]
[1755123472029,0.39061152,122830.0,122820.0,0.29656]
[1755123472236,0.00928,122830.0,122820.0,0.422]
[1755123472429,0.00928,122830.0,122820.0,0.19512]
[1755123472635,0.09200325,122830.0,122820.0,0.32056]
[1755123472837,0.47333477,122830.0,122820.0,0.32056]
[1755123473109,0.47333477,122830.0,122820.0,0.12544]
[1755123474043,0.47333477,122830.0,122800.0,2.0]
[1755123474273,0.08886325,122830.0,122810.0,0.12544]
[1755123474481,0.00314,122820.0,122810.0,0.12544]
[1755123474665,0.00528,122820.0,122810.0,0.12544]
[1755123474911,0.00528,122820.0,122800.0,2.38429152]
[1755123475124,0.00528,122820.0,122810.0,0.12544]
[1755123475511,0.00528,122820.0,122800.0,2.3931097]
[1755123475731,0.00528,122820.0,122810.0,0.12544]
[1755123476722,0.00628,122820.0,122810.0,0.12544]
[1755123476914,0.00728,122820.0,122810.0,0.12544]
[1755123478824,0.002,122820.0,122810.0,0.51182152]
[1755123479646,0.002,122820.0,122810.0,0.00505]
[1755123479804,0.002,122820.0,122810.0,0.13049]
[1755123480211,0.00398,122820.0,122810.0,0.13049]
[1755123480597,0.00398,122820.0,122810.0,0.1274]
[1755123481451,0.00398,122820.0,122810.0,0.22888]
[1755123481673,0.00398,122820.0,122810.0,0.42404]
[1755123482486,0.00714,122820.0,122810.0,0.2986]
[1755123482702,0.00714,122820.0,122810.0,0.19516]
[1755123482912,0.47119477,122820.0,122810.0,0.3206]
[1755123483559,0.8716903,122820.0,122810.0,0.19516]
[1755123483768,0.8716903,122820.0,122810.0,0.3206]
[1755123484008,0.85860577,122820.0,122800.0,2.0]
[1755123484254,0.391391,122820.0,122810.0,0.19516]
[1755123484454,0.37298,122820.0,122810.0,0.19516]
[1755123484667,0.36998,122820.0,122810.0,0.3206]
[1755123484875,0.45527425,122820.0,122810.0,0.12544]
[1755123485083,0.45527425,122820.0,122800.0,2.0]
[1755123485286,0.08588325,122810.0,122800.0,1.995]
[1755123485532,0.46919477,122810.0,122800.0,1.995]
[1755123485922,0.46819477,122810.0,122800.0,1.995]
[1755123486355,0.46819477,122810.0,122800.0,2.12044]
[1755123486561,0.47724396,122810.0,122800.0,2.12144]
[1755123487388,0.47724396,122810.0,122800.0,1.996]
[1755123487599,0.47724396,122810.0,122800.0,2.12144]
[1755123490399,0.09591244,122810.0,122800.0,2.12144]
[1755123490605,0.47724396,122810.0,122800.0,2.12144]
[1755123490811,0.09077244,122810.0,122800.0,2.12649]
[1755123491114,0.00904919,122810.0,122800.0,2.00105]
[1755123491322,0.00904919,122810.0,122800.0,2.50782152]
[1755123491464,0.00904919,122810.0,122800.0,2.80450152]
[1755123491668,0.00904919,122810.0,122800.0,2.42317]
[1755123492246,0.00504919,122810.0,122800.0,2.42317]
[1755123492466,4.919e-05,122810.0,122800.0,2.42217]
[1755123492678,0.00304919,122810.0,122800.0,2.42217]
[1755123492880,0.00804919,122810.0,122800.0,2.42317]
[1755123493695,0.00804919,122810.0,122800.0,2.73526152]
[1755123494106,0.00804919,122810.0,122800.0,2.54709709]
[1755123494731,0.00804919,122810.0,122800.0,2.35189709]
[1755123494929,0.00804919,122810.0,122800.0,1.97056557]
[1755123495128,0.00804919,122810.0,122800.0,2.22645709]
[1755123495331,0.00804919,122810.0,122800.0,2.35189709]
[1755123495756,4.919e-05,122810.0,122800.0,2.35089709]
[1755123496050,0.00504919,122810.0,122800.0,2.35089709]
[1755123497922,0.00504919,122810.0,122800.0,2.35085709]
[1755123500820,0.00504919,122810.0,122800.0,2.31861709]
[1755123501597,0.00504919,122810.0,122800.0,2.61525709]
[1755123503772,0.00504919,122810.0,122800.0,2.31861709]
[1755123506217,0.00504919,122810.0,122800.0,2.1347988]
[1755123508333,0.00504919,122810.0,122800.0,1.75346728]
[1755123508542,0.00504919,122810.0,122800.0,2.1347988]
[1755123508747,4.919e-05,122810.0,122800.0,2.1347988]
[1755123509096,0.00304919,122810.0,122800.0,2.1347988]
[1755123510293,0.00304919,122810.0,122800.0,1.75346728]
[1755123510442,0.00304919,122810.0,122800.0,2.1347988]
[1755123511609,0.00304919,122810.0,122800.0,2.51412205]
[1755123512046,0.00304919,122810.0,122800.0,2.38876205]
[1755123512254,0.00304919,122810.0,122800.0,2.51412205]
[1755123513081,0.00304919,122810.0,122800.0,2.13279053]
[1755123513283,0.00304919,122810.0,122800.0,2.51412205]
[1755123514443,0.00304919,122810.0,122800.0,2.41264205]
[1755123514886,0.00304919,122810.0,122800.0,2.43704205]
[1755123515523,0.00304919,122810.0,122800.0,2.05571053]
[1755123515956,0.00304919,122810.0,122800.0,2.43704205]
[1755123516187,0.00304919,122810.0,122800.0,2.05571053]
[1755123516362,0.00304919,122810.0,122800.0,2.43704205]
[1755123517696,0.00304919,122810.0,122800.0,2.05571053]
[1755123517896,0.00304919,122810.0,122800.0,2.43704205]
[1755123518419,0.00304919,122810.0,122800.0,2.24188205]
[1755123518975,0.00521919,122810.0,122800.0,2.24188205]
[1755123519480,0.00304919,122810.0,122800.0,2.11652205]
[1755123519690,0.00304919,122810.0,122800.0,1.73519053]
[1755123519890,0.00844919,122810.0,122800.0,1.74837728]
[1755123520891,0.00521919,122810.0,122800.0,2.1348088]
[1755123521094,0.00521919,122810.0,122800.0,1.75347728]
[1755123521299,0.00521919,122810.0,122800.0,2.1348088]
[1755123521498,0.00521919,122810.0,122800.0,2.4314488]
[1755123522469,0.00304919,122810.0,122800.0,2.05011728]
[1755123522621,0.00304919,122810.0,122800.0,2.4314488]
[1755123522809,0.00521919,122810.0,122800.0,2.4282988]
[1755123523216,0.00844919,122810.0,122800.0,2.4282988]
[1755123523439,0.00521919,122810.0,122800.0,2.04696728]
[1755123523783,0.00304919,122810.0,122800.0,2.4314488]
[1755123524160,0.00304919,122810.0,122800.0,1.4314488]
[1755123524370,0.00304919,122810.0,122800.0,1.3299688]
[1755123524556,0.00304919,122810.0,122800.0,1.1348088]
[1755123526963,0.00521919,122810.0,122800.0,1.0062988]
[1755123527174,0.00521919,122810.0,122800.0,1.1316588]
[1755123527922,0.00844919,122810.0,122800.0,1.1316588]
[1755123528307,0.00844919,122810.0,122800.0,0.75032728]
[1755123529263,0.00844919,122810.0,122800.0,0.74837728]
[1755123531555,0.00844919,122810.0,122800.0,1.04501728]
[1755123531752,0.38978071,122810.0,122800.0,1.04501728]
[1755123531955,0.38978071,122810.0,122800.0,0.91965728]
[1755123532157,0.00844919,122810.0,122800.0,0.91965728]
[1755123532525,0.38978071,122810.0,122800.0,0.94353728]
[1755123532941,0.38678071,122810.0,122800.0,0.94353728]
[1755123533140,0.47250396,122810.0,122800.0,0.62301728]
[1755123533360,0.47250396,122810.0,122800.0,0.74837728]
[1755123533767,0.09317244,122810.0,122800.0,0.74837728]
[1755123534294,0.09317244,122810.0,122800.0,0.62301728]
[1755123534495,0.09017244,122810.0,122800.0,0.74837728]
[1755123534696,0.09317244,122810.0,122800.0,0.74937728]
[1755123535148,0.09117244,122810.0,122800.0,0.74937728]
[1755123535997,0.09417244,122810.0,122800.0,0.74937728]
[1755123538649,0.00104,122810.0,122800.0,0.74937728]
[1755123538869,0.38237152,122810.0,122800.0,0.74937728]
[1755123539506,0.38237152,122810.0,122800.0,0.62401728]
[1755123539708,0.38237152,122810.0,122800.0,0.74933728]
[1755123540752,0.00104,122810.0,122800.0,0.75251728]
[1755123541746,0.00104,122810.0,122800.0,1.04919728]
[1755123542677,0.38237152,122810.0,122800.0,1.04919728]
[1755123543324,0.38237152,122810.0,122800.0,1.04605728]
[1755123543897,0.38237152,122810.0,122800.0,1.04923728]
[1755123544563,0.00104,122810.0,122800.0,1.05119728]
[1755123544766,0.024407,122820.0,122800.0,0.82435728]
[1755123544977,0.72133152,122830.0,122810.0,0.12854]
[1755123545120,0.80405477,122830.0,122820.0,0.12532]
[1755123545324,0.44816825,122830.0,122820.0,0.12532]
[1755123545531,0.82949977,122830.0,122820.0,0.12532]
[1755123545732,0.44816825,122830.0,122820.0,0.12532]
[1755123546226,0.024405,122830.0,122820.0,0.00514]
[1755123546645,0.028405,122830.0,122820.0,0.1315]
[1755123546853,0.40973652,122830.0,122820.0,0.1315]
[1755123547298,0.028405,122830.0,122820.0,0.00614]
[1755123547471,0.030495,122830.0,122820.0,0.12536]
[1755123547674,0.034495,122830.0,122820.0,0.12732]
[1755123547877,0.004,122830.0,122820.0,0.12728]
[1755123548364,0.003,122830.0,122820.0,0.12728]
[1755123548961,0.002,122830.0,122820.0,0.12728]
[1755123549493,0.00409,122830.0,122820.0,0.12728]
[1755123549686,0.38742152,122830.0,122820.0,0.12728]
[1755123550089,0.00609,122830.0,122820.0,0.12728]
[1755123550705,0.00902,122830.0,122820.0,0.12728]
[1755123551111,0.00609,122830.0,122820.0,0.12728]
[1755123551661,0.39035152,122830.0,122820.0,0.422]
[1755123552007,0.39035152,122830.0,122820.0,0.29668]
[1755123552212,0.47307477,122830.0,122820.0,0.29668]
[1755123552425,0.09174325,122830.0,122820.0,0.29668]
[1755123552660,0.47307477,122830.0,122820.0,0.42224]
[1755123554249,0.49747977,122830.0,122820.0,0.42224]
[1755123556231,0.83747977,122830.0,122820.0,0.42224]
[1755123557419,0.45614825,122830.0,122820.0,0.42224]
[1755123557633,0.83747977,122830.0,122820.0,0.42224]
[1755123559113,0.83747977,122830.0,122820.0,0.29668]
[1755123559314,0.83747977,122830.0,122820.0,0.42224]
[1755123561247,0.83747977,122830.0,122820.0,0.42228]
[1755123561820,0.83747977,122830.0,122820.0,0.29664]
[1755123562048,0.83747977,122830.0,122820.0,0.4222]
[1755123565157,0.45614825,122830.0,122820.0,0.4222]
[1755123565358,0.45321825,122830.0,122820.0,0.29866]